[Event "Late-Titled-Tuesday-Blitz-March-05-2024"]
[Site "Chess.com"]
[Date "2024.03.05"]
[Round "7"]
[White "Eloist"]
[Black "VinzentSpitzl"]
[Result "0-1"]
[WhiteElo "2437"]
[BlackElo "2551"]
[TimeControl "180+1"]
[EndTime "15:14:38 PST"]
[Termination "VinzentSpitzl won by resignation"]

1. e4 {[%clk 0:02:50.4]} 1... c5 {[%clk 0:02:54.3]} 2. Nf3 {[%clk 0:02:48.9]}
2... d6 {[%clk 0:02:53.9]} 3. Bb5+ {[%clk 0:02:48.6]} 3... Bd7 {[%clk
0:02:52.8]} 4. Bxd7+ {[%clk 0:02:48.3]} 4... Qxd7 {[%clk 0:02:53.7]} 5. c4
{[%clk 0:02:47]} 5... Nc6 {[%clk 0:02:53.1]} 6. O-O {[%clk 0:02:46.1]} 6... g6
{[%clk 0:02:53.1]} 7. d4 {[%clk 0:02:45.4]} 7... cxd4 {[%clk 0:02:53]} 8. Nxd4
{[%clk 0:02:46.3]} 8... Bg7 {[%clk 0:02:53.5]} 9. Be3 {[%clk 0:02:45.9]} 9...
Nf6 {[%clk 0:02:53.6]} 10. f3 {[%clk 0:02:43.5]} 10... O-O {[%clk 0:02:53.4]}
11. Nc3 {[%clk 0:02:43.1]} 11... Rac8 {[%clk 0:02:52.7]} 12. b3 {[%clk
0:02:35.8]} 12... Rfd8 {[%clk 0:02:49.5]} 13. Qd3 {[%clk 0:02:30.7]} 13... Qc7
{[%clk 0:02:47.6]} 14. Ndb5 {[%clk 0:02:26.6]} 14... Qa5 {[%clk 0:02:45.7]} 15.
a3 {[%clk 0:02:18.5]} 15... Re8 {[%clk 0:02:26.7]} 16. Rad1 {[%clk 0:01:58.2]}
16... a6 {[%clk 0:02:24.8]} 17. b4 {[%clk 0:01:57.9]} 17... Qd8 {[%clk
0:02:24.1]} 18. Na7 {[%clk 0:01:51.4]} 18... Ne5 {[%clk 0:02:17.6]} 19. Qe2
{[%clk 0:01:47.5]} 19... Rxc4 {[%clk 0:02:13.7]} 20. Bd4 {[%clk 0:01:35.4]}
20... Rxd4 {[%clk 0:02:05.7]} 21. Rxd4 {[%clk 0:01:33.7]} 21... Qb6 {[%clk
0:02:06.2]} 22. Qf2 {[%clk 0:01:22.1]} 22... Qxa7 {[%clk 0:02:05.5]} 23. Rdd1
{[%clk 0:01:02.9]} 23... Qxf2+ {[%clk 0:02:03.6]} 24. Rxf2 {[%clk 0:01:03.8]}
24... Rc8 {[%clk 0:02:03.3]} 25. Na4 {[%clk 0:00:58.5]} 25... Nfd7 {[%clk
0:01:51.5]} 26. f4 {[%clk 0:00:52]} 26... Nc4 {[%clk 0:01:51.1]} 27. e5 {[%clk
0:00:43.1]} 27... b5 {[%clk 0:01:46.3]} 28. exd6 {[%clk 0:00:39.4]} 28... exd6
{[%clk 0:01:39.4]} 29. Nc5 {[%clk 0:00:34.5]} 29... Nxc5 {[%clk 0:01:33.5]} 30.
bxc5 {[%clk 0:00:33.8]} 30... dxc5 {[%clk 0:01:33.9]} 31. Rf3 {[%clk 0:00:25.1]}
31... Bd4+ {[%clk 0:01:31.1]} 32. Kh1 {[%clk 0:00:24.8]} 32... a5 {[%clk
0:01:26.8]} 33. Re1 {[%clk 0:00:20.4]} 33... Kg7 {[%clk 0:01:25.7]} 34. f5
{[%clk 0:00:18.2]} 34... b4 {[%clk 0:01:23.6]} 35. axb4 {[%clk 0:00:17.3]} 35...
axb4 {[%clk 0:01:22]} 36. fxg6 {[%clk 0:00:17.2]} 36... hxg6 {[%clk 0:01:21.1]}
37. g3 {[%clk 0:00:14.9]} 37... Ne5 {[%clk 0:01:17.9]} 38. Rf4 {[%clk
0:00:15.1]} 38... b3 {[%clk 0:01:14.8]} 39. Rb1 {[%clk 0:00:13.5]} 39... Rb8
{[%clk 0:01:11.1]} 40. Kg2 {[%clk 0:00:11.7]} 40... Nd3 {[%clk 0:01:10.5]} 41.
Rf3 {[%clk 0:00:10.4]} 41... c4 {[%clk 0:01:10.2]} 42. Kf1 {[%clk 0:00:08.6]}
42... b2 {[%clk 0:01:06.4]} 43. Ke2 {[%clk 0:00:08.3]} 43... Ne5 {[%clk
0:01:03.3]} 44. Rf4 {[%clk 0:00:07.7]} 44... c3 {[%clk 0:01:02.9]} 45. Rxd4
{[%clk 0:00:07.4]} 45... c2 {[%clk 0:01:03.1]} 46. Rdd1 {[%clk 0:00:07.6]} 46...
cxb1=Q {[%clk 0:01:00.6]} 47. Rxb1 {[%clk 0:00:07.7]} 47... Nc4 {[%clk
0:01:01.1]} 48. Kd3 {[%clk 0:00:07.6]} 48... Na3 {[%clk 0:01:01.3]} 0-1

[Event "Late-Titled-Tuesday-Blitz-March-05-2024"]
[Site "Chess.com"]
[Date "2024.03.05"]
[Round "7"]
[White "Inepton_Fermion"]
[Black "jaskol95"]
[Result "1-0"]
[WhiteElo "2477"]
[BlackElo "2559"]
[TimeControl "180+1"]
[EndTime "15:14:39 PST"]
[Termination "Inepton_Fermion won by checkmate"]

1. Nf3 {[%clk 0:02:37.1]} 1... e6 {[%clk 0:03:00.9]} 2. b3 {[%clk 0:02:37]} 2...
f5 {[%clk 0:03:01]} 3. Bb2 {[%clk 0:02:37.1]} 3... Nf6 {[%clk 0:03:01.7]} 4. d3
{[%clk 0:02:37.6]} 4... Be7 {[%clk 0:03:02.3]} 5. Nbd2 {[%clk 0:02:37.7]} 5...
d6 {[%clk 0:03:03]} 6. g3 {[%clk 0:02:37.5]} 6... O-O {[%clk 0:03:03]} 7. Bg2
{[%clk 0:02:38.1]} 7... e5 {[%clk 0:03:02.3]} 8. O-O {[%clk 0:02:34.4]} 8... Nc6
{[%clk 0:03:02.6]} 9. c4 {[%clk 0:02:33]} 9... Qe8 {[%clk 0:02:59]} 10. e3
{[%clk 0:02:29.8]} 10... Qh5 {[%clk 0:02:57.3]} 11. a3 {[%clk 0:02:14]} 11... f4
{[%clk 0:02:44.6]} 12. exf4 {[%clk 0:02:06.2]} 12... exf4 {[%clk 0:02:45.5]} 13.
b4 {[%clk 0:01:58.3]} 13... Bh3 {[%clk 0:02:37.3]} 14. b5 {[%clk 0:01:53.2]}
14... Bxg2 {[%clk 0:02:25.2]} 15. Kxg2 {[%clk 0:01:54.1]} 15... Nd8 {[%clk
0:02:19.2]} 16. Nd4 {[%clk 0:01:23.5]} 16... Qg6 {[%clk 0:02:00.6]} 17. N2f3
{[%clk 0:01:14]} 17... fxg3 {[%clk 0:01:53.2]} 18. fxg3 {[%clk 0:01:11.6]} 18...
Ng4 {[%clk 0:01:53]} 19. Qe2 {[%clk 0:01:06.7]} 19... Bf6 {[%clk 0:01:43.9]} 20.
Rae1 {[%clk 0:00:50.1]} 20... Nf7 {[%clk 0:01:41.8]} 21. Ne6 {[%clk 0:00:45.7]}
21... Rfe8 {[%clk 0:01:39]} 22. Bxf6 {[%clk 0:00:31.6]} 22... Nxf6 {[%clk
0:01:31.8]} 23. Nh4 {[%clk 0:00:31.8]} 23... Qh6 {[%clk 0:01:17.5]} 24. Nf5
{[%clk 0:00:31]} 24... Qg6 {[%clk 0:01:18.1]} 25. Nh4 {[%clk 0:00:28.2]} 25...
Rxe6 {[%clk 0:01:05.6]} 26. Qxe6 {[%clk 0:00:22.7]} 26... Qxd3 {[%clk
0:01:05.8]} 27. Nf5 {[%clk 0:00:17.9]} 27... h5 {[%clk 0:00:45.9]} 28. Nxg7
{[%clk 0:00:17.4]} 28... Qg6 {[%clk 0:00:32.2]} 29. Rxf6 {[%clk 0:00:06.1]}
29... Qxg7 {[%clk 0:00:32.4]} 30. Rg6 {[%clk 0:00:06.4]} 30... Rf8 {[%clk
0:00:30.5]} 31. Qf6 {[%clk 0:00:03]} 31... Qxg6 {[%clk 0:00:30]} 32. Qxg6+
{[%clk 0:00:03.9]} 32... Kh8 {[%clk 0:00:30.6]} 33. Re7 {[%clk 0:00:03.2]} 33...
h4 {[%clk 0:00:24.8]} 34. Rxf7 {[%clk 0:00:03.2]} 34... h3+ {[%clk 0:00:25.7]}
35. Kxh3 {[%clk 0:00:03.3]} 35... Rxf7 {[%clk 0:00:26.5]} 36. Qxf7 {[%clk
0:00:03.4]} 36... c6 {[%clk 0:00:27.4]} 37. Kg4 {[%clk 0:00:03.7]} 37... d5
{[%clk 0:00:28.3]} 38. Kg5 {[%clk 0:00:04.6]} 38... dxc4 {[%clk 0:00:28.4]} 39.
Kg6 {[%clk 0:00:05.5]} 39... c3 {[%clk 0:00:29.3]} 40. Qf8# {[%clk 0:00:06.4]}
1-0

[Event "Late-Titled-Tuesday-Blitz-March-05-2024"]
[Site "Chess.com"]
[Date "2024.03.05"]
[Round "7"]
[White "Bryanl106"]
[Black "bancsoo"]
[Result "0-1"]
[WhiteElo "2649"]
[BlackElo "2886"]
[TimeControl "180+1"]
[EndTime "15:14:40 PST"]
[Termination "bancsoo won by resignation"]

1. e4 {[%clk 0:03:00.2]} 1... e5 {[%clk 0:02:59.8]} 2. Nf3 {[%clk 0:03:00.4]}
2... d6 {[%clk 0:03:00.2]} 3. Nc3 {[%clk 0:03:01.1]} 3... Nf6 {[%clk 0:03:00.1]}
4. d4 {[%clk 0:03:01.5]} 4... exd4 {[%clk 0:03:01]} 5. Nxd4 {[%clk 0:03:01.8]}
5... Be7 {[%clk 0:03:01.6]} 6. Bc4 {[%clk 0:03:01.9]} 6... O-O {[%clk
0:03:02.1]} 7. O-O {[%clk 0:03:02]} 7... c6 {[%clk 0:03:00.6]} 8. Bb3 {[%clk
0:02:57.7]} 8... b5 {[%clk 0:02:59.9]} 9. Re1 {[%clk 0:02:57.2]} 9... a6 {[%clk
0:02:51.5]} 10. Bg5 {[%clk 0:02:52.5]} 10... c5 {[%clk 0:02:48]} 11. Nf5 {[%clk
0:02:37.5]} 11... Bxf5 {[%clk 0:02:47.8]} 12. Bxf6 {[%clk 0:02:35.7]} 12... Bxf6
{[%clk 0:02:42.9]} 13. Bd5 {[%clk 0:02:35.2]} 13... Ra7 {[%clk 0:02:35.7]} 14.
exf5 {[%clk 0:02:35.3]} 14... Bxc3 {[%clk 0:02:30.5]} 15. bxc3 {[%clk
0:02:34.9]} 15... Nd7 {[%clk 0:02:31.2]} 16. Qd2 {[%clk 0:02:29.8]} 16... Nf6
{[%clk 0:02:30.8]} 17. Rad1 {[%clk 0:02:29.5]} 17... Re7 {[%clk 0:02:27.3]} 18.
Bf3 {[%clk 0:02:16.2]} 18... Rxe1+ {[%clk 0:02:24.3]} 19. Rxe1 {[%clk
0:02:17.1]} 19... Qd7 {[%clk 0:02:23.1]} 20. g4 {[%clk 0:02:15.8]} 20... h6
{[%clk 0:02:13.7]} 21. h4 {[%clk 0:02:14.5]} 21... Re8 {[%clk 0:01:46.2]} 22.
Rxe8+ {[%clk 0:02:11.1]} 22... Nxe8 {[%clk 0:01:46.2]} 23. Kg2 {[%clk
0:02:10.9]} 23... Qe7 {[%clk 0:01:34]} 24. g5 {[%clk 0:01:53]} 24... hxg5 {[%clk
0:01:30.8]} 25. hxg5 {[%clk 0:01:53.9]} 25... Qe5 {[%clk 0:01:28.3]} 26. Qd5
{[%clk 0:01:39.6]} 26... Qxd5 {[%clk 0:01:28.4]} 27. Bxd5 {[%clk 0:01:39.6]}
27... Nc7 {[%clk 0:01:26.2]} 28. Bc6 {[%clk 0:01:34]} 28... f6 {[%clk
0:01:26.4]} 29. f4 {[%clk 0:01:31.6]} 29... d5 {[%clk 0:01:17.4]} 30. Kf3 {[%clk
0:01:30]} 30... Kf8 {[%clk 0:01:17.4]} 31. Ke3 {[%clk 0:01:27.4]} 31... Ke7
{[%clk 0:01:17]} 32. Bb7 {[%clk 0:01:26.1]} 32... Kd6 {[%clk 0:01:16.9]} 33. Bc8
{[%clk 0:01:25.8]} 33... a5 {[%clk 0:01:11.4]} 34. Kd3 {[%clk 0:01:25.6]} 34...
b4 {[%clk 0:01:07.4]} 35. cxb4 {[%clk 0:01:25.2]} 35... axb4 {[%clk 0:01:07.6]}
36. Bb7 {[%clk 0:01:21.2]} 36... c4+ {[%clk 0:01:07]} 37. Kd2 {[%clk 0:01:20.6]}
37... Kc5 {[%clk 0:01:06.8]} 38. Ke3 {[%clk 0:01:17.7]} 38... Nb5 {[%clk
0:01:06.5]} 39. Kf3 {[%clk 0:01:11.3]} 39... Nc3 {[%clk 0:01:05.2]} 40. Kg4
{[%clk 0:01:11.8]} 40... Nxa2 {[%clk 0:01:05.4]} 41. Kh5 {[%clk 0:01:10.1]}
41... b3 {[%clk 0:01:04.2]} 42. cxb3 {[%clk 0:01:11]} 42... cxb3 {[%clk
0:01:04.9]} 43. Kg6 {[%clk 0:01:11.8]} 43... b2 {[%clk 0:01:05.1]} 44. Kxg7
{[%clk 0:01:12.5]} 44... fxg5 {[%clk 0:00:58.9]} 45. fxg5 {[%clk 0:01:05.4]}
45... b1=Q {[%clk 0:00:59.1]} 46. f6 {[%clk 0:01:05.7]} 46... Qxb7+ {[%clk
0:00:59.2]} 47. f7 {[%clk 0:01:04]} 47... Nc3 {[%clk 0:00:33.1]} 48. Kg8 {[%clk
0:00:34.8]} 48... Qc8+ {[%clk 0:00:32.8]} 49. f8=Q+ {[%clk 0:00:33.4]} 49...
Qxf8+ {[%clk 0:00:33.4]} 50. Kxf8 {[%clk 0:00:34.3]} 50... Ne2 {[%clk 0:00:33]}
51. g6 {[%clk 0:00:30]} 51... Nf4 {[%clk 0:00:33.3]} 52. g7 {[%clk 0:00:30.9]}
52... Ne6+ {[%clk 0:00:33.6]} 53. Ke8 {[%clk 0:00:31.5]} 53... Nxg7+ {[%clk
0:00:34]} 54. Kd8 {[%clk 0:00:32.4]} 54... d4 {[%clk 0:00:34.4]} 55. Kc8 {[%clk
0:00:33.3]} 55... d3 {[%clk 0:00:35]} 56. Kb8 {[%clk 0:00:34.2]} 56... d2 {[%clk
0:00:35.6]} 57. Ka8 {[%clk 0:00:35.1]} 0-1

[Event "Late-Titled-Tuesday-Blitz-March-05-2024"]
[Site "Chess.com"]
[Date "2024.03.05"]
[Round "7"]
[White "yaguigor"]
[Black "flubs"]
[Result "1-0"]
[WhiteElo "2570"]
[BlackElo "2447"]
[TimeControl "180+1"]
[EndTime "15:14:41 PST"]
[Termination "yaguigor won on time"]

1. d4 {[%clk 0:03:00.9]} 1... d5 {[%clk 0:02:59]} 2. c4 {[%clk 0:02:58.9]} 2...
Nc6 {[%clk 0:02:58.5]} 3. Nc3 {[%clk 0:02:49.8]} 3... Nf6 {[%clk 0:02:56.7]} 4.
cxd5 {[%clk 0:02:47.5]} 4... Nxd5 {[%clk 0:02:55.8]} 5. e4 {[%clk 0:02:48]} 5...
Nxc3 {[%clk 0:02:55.2]} 6. bxc3 {[%clk 0:02:48.9]} 6... e5 {[%clk 0:02:55.2]} 7.
Nf3 {[%clk 0:02:20.6]} 7... exd4 {[%clk 0:02:25.4]} 8. cxd4 {[%clk 0:02:13.8]}
8... Bb4+ {[%clk 0:02:24.9]} 9. Bd2 {[%clk 0:02:12.9]} 9... Qe7 {[%clk
0:02:24.7]} 10. Bxb4 {[%clk 0:02:11]} 10... Qxe4+ {[%clk 0:02:19.7]} 11. Be2
{[%clk 0:02:02.5]} 11... Nxb4 {[%clk 0:02:18.5]} 12. Qa4+ {[%clk 0:01:58.3]}
12... Nc6 {[%clk 0:02:17.4]} 13. O-O {[%clk 0:01:58.3]} 13... O-O {[%clk
0:02:11.8]} 14. Bb5 {[%clk 0:01:55.5]} 14... Bd7 {[%clk 0:01:56.4]} 15. Rfe1
{[%clk 0:01:48.4]} 15... Qd5 {[%clk 0:01:44.6]} 16. Bc4 {[%clk 0:01:45.3]} 16...
Qh5 {[%clk 0:01:43]} 17. Qa3 {[%clk 0:01:21.8]} 17... Bg4 {[%clk 0:01:36.2]} 18.
Ne5 {[%clk 0:01:16.5]} 18... Nxd4 {[%clk 0:01:25]} 19. Qc3 {[%clk 0:01:13.2]}
19... Rad8 {[%clk 0:01:09.2]} 20. Re4 {[%clk 0:01:00.8]} 20... Ne2+ {[%clk
0:01:08]} 21. Bxe2 {[%clk 0:00:57.2]} 21... Bxe2 {[%clk 0:01:08.4]} 22. g4
{[%clk 0:00:52.9]} 22... Qg5 {[%clk 0:00:37.1]} 23. Rxe2 {[%clk 0:00:50.6]}
23... Rd5 {[%clk 0:00:27.4]} 24. Qg3 {[%clk 0:00:45.6]} 24... Rfd8 {[%clk
0:00:19.5]} 25. Rae1 {[%clk 0:00:43.6]} 25... h6 {[%clk 0:00:12.6]} 26. f4
{[%clk 0:00:41.3]} 26... Qf6 {[%clk 0:00:12.7]} 27. h4 {[%clk 0:00:35.5]} 27...
Rd2 {[%clk 0:00:09.2]} 28. g5 {[%clk 0:00:33]} 28... Qb6+ {[%clk 0:00:08.7]} 29.
Kg2 {[%clk 0:00:32.5]} 29... h5 {[%clk 0:00:06.1]} 30. Qf3 {[%clk 0:00:23.6]}
30... g6 {[%clk 0:00:04.2]} 31. f5 {[%clk 0:00:22.8]} 31... Qc5 {[%clk
0:00:02.3]} 32. fxg6 {[%clk 0:00:21.2]} 32... Qxe5 {[%clk 0:00:02]} 33. Qxf7+
{[%clk 0:00:19.5]} 1-0

[Event "Late-Titled-Tuesday-Blitz-March-05-2024"]
[Site "Chess.com"]
[Date "2024.03.05"]
[Round "7"]
[White "Oleksandr_Bortnyk"]
[Black "baag"]
[Result "1-0"]
[WhiteElo "3010"]
[BlackElo "2851"]
[TimeControl "180+1"]
[EndTime "15:14:46 PST"]
[Termination "Oleksandr_Bortnyk won by resignation"]

1. e4 {[%clk 0:02:50.5]} 1... e5 {[%clk 0:02:58.2]} 2. Nf3 {[%clk 0:02:48.1]}
2... Nc6 {[%clk 0:02:56.7]} 3. Bc4 {[%clk 0:02:46.9]} 3... Nf6 {[%clk
0:02:56.6]} 4. Nc3 {[%clk 0:02:40.2]} 4... Nxe4 {[%clk 0:02:55.7]} 5. Nxe4
{[%clk 0:02:32.4]} 5... d5 {[%clk 0:02:55.6]} 6. Bd3 {[%clk 0:02:29.5]} 6...
dxe4 {[%clk 0:02:55.9]} 7. Bxe4 {[%clk 0:02:30.4]} 7... Bd6 {[%clk 0:02:56]} 8.
d3 {[%clk 0:02:28.6]} 8... O-O {[%clk 0:02:49.2]} 9. Bxc6 {[%clk 0:02:25.5]}
9... bxc6 {[%clk 0:02:49]} 10. h3 {[%clk 0:02:24.3]} 10... c5 {[%clk 0:02:37.4]}
11. O-O {[%clk 0:02:23.5]} 11... c4 {[%clk 0:02:31.4]} 12. dxc4 {[%clk
0:02:20.5]} 12... Bb7 {[%clk 0:02:26.8]} 13. Qe2 {[%clk 0:02:12.3]} 13... Qf6
{[%clk 0:02:23.7]} 14. Be3 {[%clk 0:02:04]} 14... Rfe8 {[%clk 0:02:19.9]} 15. c5
{[%clk 0:02:02.6]} 15... Bf8 {[%clk 0:02:19.8]} 16. Rfe1 {[%clk 0:02:00.7]}
16... Qg6 {[%clk 0:02:11.9]} 17. Rad1 {[%clk 0:01:51.2]} 17... Bc6 {[%clk
0:01:57.9]} 18. b4 {[%clk 0:01:39.5]} 18... Rab8 {[%clk 0:01:51.8]} 19. a3
{[%clk 0:01:38]} 19... h6 {[%clk 0:01:35.1]} 20. c4 {[%clk 0:01:33.3]} 20... a6
{[%clk 0:01:35.5]} 21. Bc1 {[%clk 0:01:28.4]} 21... a5 {[%clk 0:01:08.6]} 22.
Bd2 {[%clk 0:01:18.5]} 22... axb4 {[%clk 0:01:07.5]} 23. axb4 {[%clk 0:01:19.4]}
23... f5 {[%clk 0:00:52.6]} 24. Nh4 {[%clk 0:01:17.2]} 24... Qf6 {[%clk
0:00:43.7]} 25. Qh5 {[%clk 0:01:16.8]} 25... g5 {[%clk 0:00:44.5]} 26. Qg6+
{[%clk 0:01:00.2]} 26... Qxg6 {[%clk 0:00:44.7]} 27. Nxg6 {[%clk 0:01:01.1]}
27... Bg7 {[%clk 0:00:45.3]} 28. b5 {[%clk 0:00:55]} 28... Be4 {[%clk
0:00:18.8]} 29. h4 {[%clk 0:00:49.4]} 29... Kf7 {[%clk 0:00:13.8]} 30. h5 {[%clk
0:00:49.5]} 30... Bd3 {[%clk 0:00:12.1]} 31. Bxg5 {[%clk 0:00:34.9]} 31... e4
{[%clk 0:00:12.5]} 32. Bf4 {[%clk 0:00:32.1]} 32... Rbc8 {[%clk 0:00:04.8]} 33.
b6 {[%clk 0:00:31.2]} 33... cxb6 {[%clk 0:00:04.5]} 34. cxb6 {[%clk 0:00:32.1]}
34... Rxc4 {[%clk 0:00:03]} 35. Rc1 {[%clk 0:00:23.9]} 35... Rb4 {[%clk
0:00:02.1]} 36. Rc7+ {[%clk 0:00:23.6]} 36... Kf6 {[%clk 0:00:01.6]} 37. b7
{[%clk 0:00:21]} 37... Bf8 {[%clk 0:00:01.2]} 38. Rd7 {[%clk 0:00:18.9]} 1-0

[Event "Late-Titled-Tuesday-Blitz-March-05-2024"]
[Site "Chess.com"]
[Date "2024.03.05"]
[Round "7"]
[White "anasta10"]
[Black "Binary010"]
[Result "1-0"]
[WhiteElo "2530"]
[BlackElo "2793"]
[TimeControl "180+1"]
[EndTime "15:14:47 PST"]
[Termination "anasta10 won on time"]

1. Nf3 {[%clk 0:03:00.9]} 1... Nf6 {[%clk 0:02:58.6]} 2. c4 {[%clk 0:03:00.7]}
2... b6 {[%clk 0:02:59]} 3. g3 {[%clk 0:03:00.6]} 3... Bb7 {[%clk 0:02:59.2]} 4.
Bg2 {[%clk 0:03:01.3]} 4... g6 {[%clk 0:02:59.6]} 5. O-O {[%clk 0:03:01.9]} 5...
Bg7 {[%clk 0:03:00.3]} 6. Nc3 {[%clk 0:03:02.3]} 6... c5 {[%clk 0:02:58]} 7. Rb1
{[%clk 0:02:59.6]} 7... Nc6 {[%clk 0:02:40.7]} 8. d3 {[%clk 0:02:59.6]} 8... O-O
{[%clk 0:02:40.6]} 9. a3 {[%clk 0:03:00.3]} 9... d5 {[%clk 0:02:39.8]} 10. cxd5
{[%clk 0:02:59.2]} 10... Nxd5 {[%clk 0:02:40]} 11. Nxd5 {[%clk 0:02:59.6]} 11...
Qxd5 {[%clk 0:02:39.8]} 12. b4 {[%clk 0:03:00]} 12... cxb4 {[%clk 0:02:35.9]}
13. axb4 {[%clk 0:03:00.9]} 13... Rac8 {[%clk 0:02:26.8]} 14. Qa4 {[%clk
0:02:58.3]} 14... Nd4 {[%clk 0:02:14.7]} 15. Re1 {[%clk 0:02:33]} 15... Bc6
{[%clk 0:01:29]} 16. Qd1 {[%clk 0:02:23.2]} 16... Rfd8 {[%clk 0:01:25.9]} 17.
Bb2 {[%clk 0:02:20.2]} 17... e5 {[%clk 0:01:09.8]} 18. Bxd4 {[%clk 0:01:28]}
18... exd4 {[%clk 0:01:08]} 19. b5 {[%clk 0:01:18.4]} 19... Ba8 {[%clk
0:00:57.7]} 20. Qa4 {[%clk 0:01:15.1]} 20... Qd7 {[%clk 0:00:43.6]} 21. Ra1
{[%clk 0:00:53]} 21... Rc7 {[%clk 0:00:43.6]} 22. Rec1 {[%clk 0:00:49.9]} 22...
Rxc1+ {[%clk 0:00:39.4]} 23. Rxc1 {[%clk 0:00:50.8]} 23... a5 {[%clk 0:00:39.4]}
24. Ne1 {[%clk 0:00:45]} 24... Bxg2 {[%clk 0:00:35.4]} 25. Nxg2 {[%clk
0:00:45.9]} 25... Rc8 {[%clk 0:00:34.4]} 26. Rc6 {[%clk 0:00:44.7]} 26... Re8
{[%clk 0:00:17.4]} 27. Qc2 {[%clk 0:00:41.8]} 27... Qb7 {[%clk 0:00:10.1]} 28.
Nf4 {[%clk 0:00:37.4]} 28... h5 {[%clk 0:00:09.7]} 29. h4 {[%clk 0:00:36]} 29...
Kh7 {[%clk 0:00:09.9]} 30. Rc7 {[%clk 0:00:30.3]} 30... Qa8 {[%clk 0:00:06.3]}
31. Rxf7 {[%clk 0:00:27.8]} 31... a4 {[%clk 0:00:06.9]} 32. Qc7 {[%clk
0:00:16.5]} 32... Rg8 {[%clk 0:00:07.1]} 33. Qd6 {[%clk 0:00:16.7]} 33... Kh8
{[%clk 0:00:01.5]} 34. Qxg6 {[%clk 0:00:14]} 1-0

[Event "Late-Titled-Tuesday-Blitz-March-05-2024"]
[Site "Chess.com"]
[Date "2024.03.05"]
[Round "7"]
[White "katharinareinecke"]
[Black "SocoLoco"]
[Result "0-1"]
[WhiteElo "1978"]
[BlackElo "2220"]
[TimeControl "180+1"]
[EndTime "15:14:49 PST"]
[Termination "SocoLoco won by resignation"]

1. e4 {[%clk 0:03:00.9]} 1... c5 {[%clk 0:02:58.9]} 2. Nf3 {[%clk 0:02:59]} 2...
e6 {[%clk 0:02:58.8]} 3. g3 {[%clk 0:02:57.4]} 3... d5 {[%clk 0:02:57.3]} 4.
exd5 {[%clk 0:02:52.2]} 4... Qxd5 {[%clk 0:02:57.7]} 5. Bg2 {[%clk 0:02:50.7]}
5... Nf6 {[%clk 0:02:57.9]} 6. O-O {[%clk 0:02:49.5]} 6... Be7 {[%clk
0:02:57.8]} 7. Nc3 {[%clk 0:02:41.5]} 7... Qd8 {[%clk 0:02:55.9]} 8. d3 {[%clk
0:02:38.1]} 8... O-O {[%clk 0:02:55.1]} 9. Bf4 {[%clk 0:02:36.2]} 9... Nc6
{[%clk 0:02:53.3]} 10. Nb5 {[%clk 0:02:31.1]} 10... Nd5 {[%clk 0:02:52.3]} 11.
Bd2 {[%clk 0:02:16.2]} 11... a6 {[%clk 0:02:51.8]} 12. Nc3 {[%clk 0:02:16.1]}
12... Bf6 {[%clk 0:02:41.7]} 13. Rb1 {[%clk 0:02:05.9]} 13... Re8 {[%clk
0:02:32.5]} 14. Ne4 {[%clk 0:02:02.9]} 14... Be7 {[%clk 0:02:29.3]} 15. a3
{[%clk 0:01:55.8]} 15... h6 {[%clk 0:02:26.8]} 16. Qe2 {[%clk 0:01:54.5]} 16...
Qc7 {[%clk 0:02:17.1]} 17. c4 {[%clk 0:01:50.7]} 17... Nf6 {[%clk 0:02:16.3]}
18. Bf4 {[%clk 0:01:48.7]} 18... Qd8 {[%clk 0:02:15.3]} 19. Ne5 {[%clk
0:01:36.7]} 19... Nd4 {[%clk 0:02:13.4]} 20. Qd2 {[%clk 0:01:29.2]} 20... Nd7
{[%clk 0:02:04.3]} 21. Nxd7 {[%clk 0:01:27.5]} 21... Qxd7 {[%clk 0:02:01.6]} 22.
b4 {[%clk 0:01:26.1]} 22... cxb4 {[%clk 0:01:31.2]} 23. axb4 {[%clk 0:01:26.3]}
23... Ra7 {[%clk 0:01:29.5]} 24. Be3 {[%clk 0:01:19.9]} 24... e5 {[%clk
0:01:25.2]} 25. Bxd4 {[%clk 0:01:17.7]} 25... Qxd4 {[%clk 0:01:20.8]} 26. Qe3
{[%clk 0:01:17.6]} 26... Rd8 {[%clk 0:01:15.6]} 27. Rfd1 {[%clk 0:01:13.7]}
27... Bg4 {[%clk 0:01:11.2]} 28. Rd2 {[%clk 0:01:13.1]} 28... b6 {[%clk
0:01:09.1]} 29. h3 {[%clk 0:00:55.6]} 29... Be6 {[%clk 0:01:07.8]} 30. Qxd4
{[%clk 0:00:52.8]} 30... Rxd4 {[%clk 0:01:06.6]} 31. b5 {[%clk 0:00:44.2]} 31...
a5 {[%clk 0:01:03.6]} 32. Kh2 {[%clk 0:00:41.1]} 32... f5 {[%clk 0:01:00.2]} 33.
Nc3 {[%clk 0:00:32.5]} 33... Bxc4 {[%clk 0:00:59.1]} 34. Ne2 {[%clk 0:00:31.7]}
34... Rxd3 {[%clk 0:00:57.7]} 35. Rxd3 {[%clk 0:00:28.5]} 35... Bxd3 {[%clk
0:00:58.6]} 36. Rb2 {[%clk 0:00:26.5]} 36... a4 {[%clk 0:00:45.5]} 37. Nc3
{[%clk 0:00:22.1]} 37... a3 {[%clk 0:00:42.6]} 38. Ra2 {[%clk 0:00:20.4]} 38...
Bc4 {[%clk 0:00:42.2]} 39. Bd5+ {[%clk 0:00:19.7]} 39... Bxd5 {[%clk 0:00:40.4]}
40. Nxd5 {[%clk 0:00:20.6]} 40... Bc5 {[%clk 0:00:33.4]} 41. f4 {[%clk
0:00:20.8]} 41... e4 {[%clk 0:00:32.4]} 42. Kg2 {[%clk 0:00:20.5]} 42... Kf7
{[%clk 0:00:32.3]} 43. Kf1 {[%clk 0:00:20.5]} 43... Ke6 {[%clk 0:00:32]} 44. Ke2
{[%clk 0:00:20.5]} 44... Kxd5 {[%clk 0:00:31.8]} 45. Rd2+ {[%clk 0:00:19]} 45...
Kc4 {[%clk 0:00:31.6]} 46. g4 {[%clk 0:00:19.4]} 46... g6 {[%clk 0:00:30.6]} 47.
gxf5 {[%clk 0:00:20.3]} 47... gxf5 {[%clk 0:00:30.8]} 48. Ke1 {[%clk 0:00:19.7]}
48... Bb4 {[%clk 0:00:30.1]} 0-1